bitfinex-derivatives/quotes_BTCF0:USTF0_20250716
["timestamp","ask_amount","ask_price","bid_price","bid_amount"]
[1752626942226,0.27535947,118200.0,118190.0,0.1764155]
[1752626942416,0.27770947,118200.0,118190.0,1.45097241]
[1752626942621,0.06622897,118200.0,118190.0,1.45097241]
[1752626942918,0.06622897,118200.0,118190.0,1.1657355]
[1752626942919,0.23561017,118200.0,118190.0,1.1657355]
[1752626943114,0.23561017,118200.0,118190.0,0.5372155]
[1752626943316,0.06642897,118200.0,118190.0,1.1660555]
[1752626943516,0.05917897,118200.0,118190.0,1.49842488]
[1752626943920,0.05917897,118200.0,118190.0,1.49890488]
[1752626944124,0.05917897,118200.0,118190.0,0.86958488]
[1752626944319,0.05917897,118200.0,118190.0,1.49886488]
[1752626944822,0.22836017,118200.0,118190.0,1.49882488]
[1752626945023,0.05917897,118200.0,118190.0,1.49882488]
[1752626946029,0.05917897,118200.0,118190.0,1.50739371]
[1752626948023,0.22836017,118200.0,118190.0,1.17502433]
[1752626948224,0.22836017,118200.0,118190.0,1.50739371]
[1752626948722,0.22836017,118200.0,118190.0,1.50659371]
[1752626950424,0.22836017,118200.0,118190.0,1.50635371]
[1752626950730,0.23561017,118200.0,118190.0,1.17370433]
[1752626950928,0.23561017,118200.0,118190.0,0.54578433]
[1752626951131,0.23561017,118200.0,118190.0,1.17390433]
[1752626951323,0.23561017,118200.0,118190.0,0.54578433]
[1752626951523,0.23561017,118200.0,118190.0,1.17394433]
[1752626953429,0.23561027,118200.0,118190.0,1.17394433]
[1752626954128,0.23561027,118200.0,118190.0,1.50631371]
[1752626954929,0.23561027,118200.0,118190.0,1.17394433]
[1752626955426,0.22836027,118200.0,118190.0,1.50631371]
[1752626955623,0.05917897,118200.0,118190.0,1.19777842]
[1752626955928,0.22836057,118200.0,118190.0,1.5301478]
[1752626956129,0.05917897,118200.0,118190.0,1.5301478]
[1752626956526,0.22836057,118200.0,118190.0,0.9019878]
[1752626957031,0.22836057,118200.0,118190.0,1.19693842]
[1752626957230,0.22836057,118200.0,118190.0,0.9019878]
[1752626957525,0.05917897,118200.0,118190.0,1.5292678]
[1752626957726,0.22836057,118200.0,118190.0,1.5292678]
[1752626957927,0.22836057,118200.0,118190.0,1.8269678]
[1752626958827,0.22836057,118200.0,118190.0,1.49459842]
[1752626959026,0.22836057,118200.0,118190.0,1.8269678]
[1752626959431,0.05917897,118200.0,118190.0,1.8269678]
[1752626960132,0.22836057,118200.0,118190.0,1.8269678]
[1752626961235,0.05917897,118200.0,118190.0,1.8269678]
[1752626962737,0.05917897,118200.0,118190.0,1.84949567]
[1752626963237,0.05917897,118200.0,118190.0,1.8269678]
[1752626963534,0.05917897,118200.0,118190.0,1.80313371]
[1752626964942,0.05917897,118200.0,118190.0,1.75426654]
[1752626966132,0.05917897,118200.0,118190.0,1.47076433]
[1752626966334,0.05917897,118200.0,118190.0,1.75426654]
[1752626966637,0.05917897,118200.0,118190.0,1.48040687]
[1752626966840,0.03270762,118200.0,118190.0,1.93247708]
[1752626967134,0.03270762,118200.0,118190.0,1.95500495]
[1752626967437,0.03270762,118200.0,118190.0,2.25270495]
[1752626967830,0.03270762,118200.0,118190.0,1.32003487]
[1752626968035,0.03270762,118200.0,118190.0,1.94675487]
[1752626968240,0.03270762,118200.0,118190.0,1.96928274]
[1752626968440,0.03270762,118200.0,118190.0,1.96936274]
[1752626970137,2e-08,118200.0,118190.0,1.95516495]
[1752626970343,2e-08,118200.0,118190.0,3.42278495]
[1752626970541,2e-08,118200.0,118190.0,2.51248274]
[1752626970736,2e-08,118200.0,118190.0,3.13948274]
[1752626971633,2e-08,118200.0,118190.0,2.51248274]
[1752626971833,2e-08,118200.0,118190.0,3.13932274]
[1752626972034,2e-08,118200.0,118190.0,2.51248274]
[1752626972234,2e-08,118200.0,118190.0,3.13920274]
[1752626973339,2e-08,118200.0,118190.0,2.5425199]
[1752626973539,2e-08,118200.0,118190.0,3.13912274]
[1752626973845,2e-08,118200.0,118190.0,3.1691599]
[1752626975041,2e-08,118200.0,118190.0,2.5425199]
[1752626975341,2e-08,118200.0,118190.0,3.14639203]
[1752626975540,2e-08,118200.0,118190.0,2.97714403]
[1752626976242,2e-08,118200.0,118190.0,2.67944403]
[1752626976741,0.1715545,118240.0,118230.0,0.2537727]
[1752626976940,0.1715545,118240.0,118230.0,1.88535491]
[1752626977745,0.1715545,118240.0,118230.0,1.88539491]
[1752626978247,0.1715545,118240.0,118230.0,1.88535491]
[1752626978834,0.1760945,118240.0,118230.0,1.95468789]
[1752626980141,0.1760945,118240.0,118230.0,1.67118568]
[1752626980446,0.1760945,118240.0,118230.0,1.95468789]
[1752626980849,0.1760945,118240.0,118230.0,1.95472789]
[1752626981447,0.1760945,118240.0,118230.0,1.95468789]
[1752626982742,0.1760945,118240.0,118230.0,1.67118568]
[1752626982949,0.1760945,118240.0,118230.0,1.95468789]
[1752626983549,0.1760945,118240.0,118230.0,1.67118568]
[1752626983743,0.1760945,118240.0,118230.0,1.95468789]
[1752626984749,0.1760945,118240.0,118230.0,1.67118568]
[1752626985046,0.1760945,118240.0,118230.0,1.95468789]
[1752626985444,0.1760945,118240.0,118230.0,1.67118568]
[1752626985647,0.1760945,118240.0,118230.0,1.95468789]
[1752626986250,0.1760945,118240.0,118230.0,1.9546032]
[1752626986449,0.1760945,118240.0,118230.0,1.58499178]
[1752626986651,0.45959671,118240.0,118230.0,0.81417121]
[1752626987146,0.1760945,118240.0,118230.0,1.44033121]
[1752626987345,0.45959671,118240.0,118230.0,1.44033121]
[1752626989151,0.45959671,118240.0,118230.0,1.60947001]
[1752626989752,0.1760945,118240.0,118230.0,0.98331001]
[1752626990049,0.1760945,118240.0,118230.0,1.60875001]
[1752626990345,0.1760945,118240.0,118230.0,1.60963001]
[1752626991746,0.45959671,118240.0,118230.0,1.60951001]
[1752626991946,0.1760945,118240.0,118230.0,1.60951001]
[1752626992651,0.45959671,118240.0,118230.0,1.60951001]
[1752626993444,0.45959671,118240.0,118230.0,0.81417121]
[1752626993645,0.45979671,118240.0,118230.0,1.44033121]
[1752626993844,0.45979671,118240.0,118230.0,1.60947001]
[1752626994652,0.1762945,118240.0,118230.0,1.60947001]
[1752626994852,0.45979671,118240.0,118230.0,1.60949362]
[1752626996850,1.16245092,118240.0,118230.0,0.38474184]
[1752626997148,0.1761674,118210.0,118200.0,0.38338099]
[1752626997349,0.45986961,118210.0,118200.0,0.38338099]
[1752626998151,0.63771302,118210.0,118200.0,0.3608]
[1752626998554,0.62906961,118210.0,118200.0,0.3608]
[1752626999048,0.1716017,118200.0,118190.0,0.38338099]
[1752626999254,0.45988391,118200.0,118190.0,0.3608]
[1752627000444,0.46088391,118200.0,118190.0,0.3608]
[1752627000850,0.46088391,118200.0,118190.0,0.5299961]
[1752627001052,0.46288391,118200.0,118190.0,0.58087]
[1752627003054,1.10718612,118200.0,118190.0,0.22007]
[1752627003262,1.90251412,118200.0,118190.0,0.22007]
[1752627003450,1.90251412,118200.0,118190.0,0.21507]
[1752627007947,2.15251412,118200.0,118190.0,0.20007]
[1752627008152,0.1692361,118190.0,118180.0,0.01703398]
[1752627008352,0.45293831,118190.0,118180.0,0.01703398]
[1752627008550,1.44261331,118200.0,118190.0,0.17783769]
[1752627008750,2.06451332,118200.0,118190.0,0.17783769]
[1752627009056,2.31451332,118200.0,118190.0,0.17783769]
[1752627009258,1.7475089,118200.0,118190.0,0.17783769]
[1752627009453,2.31451332,118200.0,118190.0,0.17783769]
[1752627009650,2.31151332,118200.0,118190.0,0.11324099]
[1752627009856,0.1692104,118180.0,118170.0,0.00479]
[1752627010055,1.07843261,118180.0,118170.0,0.00479]
[1752627010249,0.1692248,118170.0,118160.0,0.36329]
[1752627010453,0.45272701,118170.0,118160.0,0.36808]
[1752627011950,0.45272701,118170.0,118160.0,0.3608]
[1752627012354,0.45472701,118170.0,118160.0,0.36559]
[1752627012755,0.1712248,118170.0,118160.0,0.36559]
[1752627013061,0.45272701,118170.0,118160.0,0.58566]
[1752627013263,0.45472701,118170.0,118160.0,0.58566]
[1752627014059,0.45472701,118170.0,118160.0,0.22007]
[1752627015366,0.90748523,118170.0,118160.0,0.22007]
[1752627015570,0.98478302,118170.0,118160.0,0.22007]
[1752627017071,1.61054302,118170.0,118160.0,0.22007]
[1752627019669,1.61054302,118170.0,118150.0,0.36542]
[1752627019670,0.0423097,118160.0,118130.0,0.36088637]
[1752627019971,0.9219595,118150.0,118140.0,0.00462]
[1752627020768,0.1692677,118140.0,118130.0,0.36785637]
[1752627020962,0.47021015,118140.0,118130.0,0.36785637]
[1752627021573,0.18670794,118140.0,118130.0,0.36785637]
[1752627021877,0.47021015,118140.0,118130.0,0.36785637]
[1752627022067,0.53688866,118140.0,118130.0,0.36785637]
[1752627022871,0.53688866,118140.0,118130.0,0.58792637]
[1752627027273,0.53688866,118140.0,118130.0,0.58784]
[1752627027473,0.53708866,118140.0,118130.0,0.22704]
[1752627028181,0.25358645,118140.0,118130.0,0.22704]
[1752627028482,0.53708866,118140.0,118130.0,0.22704]
[1752627029778,0.53708866,118140.0,118130.0,0.22469]
[1752627032689,0.54540762,118140.0,118130.0,0.22469]
[1752627034084,0.26190541,118140.0,118130.0,0.22469]
[1752627034284,0.54540762,118140.0,118130.0,0.22469]
[1752627035991,0.26190541,118140.0,118130.0,0.58549]
[1752627036290,0.54540762,118140.0,118130.0,0.58549]
[1752627036584,0.1952269,118140.0,118130.0,1.04056621]
[1752627036793,0.8208269,118140.0,118130.0,1.04056621]
[1752627036989,1.10432911,118140.0,118130.0,0.757064]
[1752627037386,0.8208269,118140.0,118130.0,0.757064]
[1752627037786,1.10432911,118140.0,118130.0,0.757064]
[1752627037989,1.10428911,118140.0,118130.0,0.926346]
[1752627038293,0.47872911,118140.0,118130.0,0.757064]
[1752627038494,0.8207469,118140.0,118130.0,0.757064]
[1752627038794,0.8207469,118140.0,118130.0,0.78015659]
[1752627040593,1.10424911,118140.0,118130.0,0.78015659]
[1752627042994,1.10424911,118140.0,118130.0,0.757064]
[1752627044085,0.47872911,118140.0,118130.0,0.757064]
[1752627044494,0.00351896,118140.0,118130.0,1.85828609]
[1752627044800,0.2606935,118170.0,118160.0,0.1692391]
[1752627045098,0.9283231,118170.0,118160.0,0.36803]
[1752627045298,1.21182531,118170.0,118160.0,0.5881]
[1752627046304,1.21382531,118170.0,118160.0,0.5881]
[1752627046592,0.9302831,118170.0,118160.0,0.757324]
[1752627046787,0.002,118170.0,118160.0,1.21006521]
[1752627047388,0.002,118170.0,118160.0,1.30009512]
[1752627048094,0.27087399,118180.0,118160.0,1.30009512]
[1752627048294,0.27087399,118180.0,118170.0,1.44098691]
[1752627048500,0.27087399,118180.0,118170.0,1.61518091]
[1752627049401,0.27287399,118180.0,118170.0,1.61518091]
[1752627049597,0.27287399,118180.0,118170.0,1.3316787]
[1752627049800,0.2558321,118180.0,118170.0,1.3316787]
[1752627050301,0.2558321,118180.0,118170.0,1.5517487]
[1752627051604,0.0044452,118210.0,118200.0,0.1692618]
[1752627051804,0.45945561,118210.0,118200.0,1.34669]
[1752627052000,0.45945561,118210.0,118200.0,0.72168]
[1752627052394,0.45945561,118210.0,118200.0,0.7216]
[1752627052603,1.08441561,118210.0,118200.0,0.7216]
[1752627053396,0.1759534,118210.0,118200.0,0.7216]
[1752627053598,0.1691682,118210.0,118200.0,0.72168]
[1752627053797,0.2159544,118220.0,118210.0,8e-05]
[1752627054097,0.1736647,118220.0,118210.0,1.43851961]
[1752627054302,0.1691647,118220.0,118210.0,1.43851961]
[1752627055301,0.1691647,118220.0,118210.0,1.65858961]
[1752627056903,0.1691647,118220.0,118210.0,1.70725844]
[1752627060702,0.1691647,118220.0,118210.0,1.08233844]
[1752627060908,0.1691647,118220.0,118210.0,1.70677844]
[1752627061411,0.1691647,118220.0,118210.0,1.08233844]
[1752627061611,0.1693647,118220.0,118210.0,1.70673844]
[1752627061806,0.0002,118220.0,118210.0,1.70673844]
[1752627062200,0.1693532,118220.0,118210.0,1.70673844]
[1752627062601,0.1693532,118220.0,118210.0,0.7501674]
[1752627062811,0.1693532,118220.0,118210.0,1.70673844]
[1752627063405,0.0002,118220.0,118210.0,1.70673844]
[1752627064405,0.0002,118220.0,118210.0,2.00443844]
[1752627064604,0.1693532,118220.0,118210.0,2.00443844]
[1752627067913,0.1693532,118220.0,118210.0,1.79922244]
[1752627068108,0.0422846,118240.0,118230.0,0.2114061]
[1752627068109,0.2959898,118240.0,118230.0,0.2114061]
[1752627068410,0.2959898,118240.0,118230.0,0.7216]
[1752627068411,0.63500084,118240.0,118230.0,0.7216]
[1752627068602,0.63500084,118240.0,118230.0,0.8907388]
[1752627068805,0.63500084,118240.0,118230.0,0.7216]
[1752627069014,0.63500084,118240.0,118230.0,0.3608]
[1752627070216,0.63500084,118240.0,118230.0,0.58087]
[1752627071017,0.63500084,118240.0,118230.0,0.64975115]
[1752627071213,0.3028298,118240.0,118230.0,0.64975115]
[1752627071407,0.63500084,118240.0,118230.0,0.64975115]
[1752627071811,0.63500084,118240.0,118230.0,0.58087]
[1752627072013,0.63500084,118240.0,118230.0,0.22007]
[1752627072608,1.41495284,118240.0,118230.0,0.22007]
[1752627072814,0.50816424,118220.0,118210.0,0.01847553]
[1752627073010,1.13200424,118220.0,118210.0,0.01847553]
[1752627073405,0.7998332,118220.0,118210.0,0.01847553]
[1752627073610,1.13200424,118220.0,118210.0,0.01847553]
[1752627075112,1.13200424,118220.0,118210.0,0.06680287]
[1752627075306,1.66198824,118220.0,118210.0,0.06680287]
[1752627075615,0.1765318,118200.0,118190.0,0.3608]
[1752627075810,0.8002518,118200.0,118190.0,0.3608]
[1752627076212,1.13242284,118200.0,118190.0,0.3608]
[1752627076509,0.1716261,118190.0,118180.0,0.3608]
[1752627076714,0.1765461,118190.0,118180.0,0.3608]
[1752627077117,0.50871714,118190.0,118180.0,0.3608]
[1752627077722,0.1765461,118190.0,118180.0,0.5300104]
[1752627078018,0.8001861,118190.0,118180.0,0.77320146]
[1752627078719,0.8001861,118190.0,118180.0,0.58923085]
[1752627078916,0.8001861,118190.0,118180.0,0.94135345]
[1752627079218,0.8001861,118190.0,118180.0,0.6577111]
[1752627082421,0.8001461,118190.0,118180.0,0.8269215]
[1752627082623,0.8001461,118190.0,118180.0,1.11056385]
[1752627082817,0.00492,118190.0,118180.0,1.11056385]
[1752627083017,0.1741161,118190.0,118180.0,1.1337045]
[1752627083222,0.1741161,118190.0,118180.0,1.11056385]
[1752627083423,0.1741161,118190.0,118180.0,1.13370793]
[1752627083724,0.00492,118190.0,118180.0,1.13370793]
[1752627084120,0.19093685,118210.0,118200.0,0.1691818]
[1752627084317,0.02176935,118210.0,118200.0,1.82104823]
[1752627084618,0.2188072,118220.0,118210.0,0.1691675]
[1752627084816,0.2188072,118220.0,118210.0,0.81360985]
[1752627084817,0.2190072,118220.0,118210.0,0.81360985]
[1752627085223,0.2190072,118220.0,118210.0,1.03367985]
[1752627086617,0.1742854,118220.0,118210.0,1.03367985]
[1752627087013,0.1742854,118220.0,118210.0,1.08219206]
[1752627088026,0.1742854,118220.0,118210.0,0.7500375]
[1752627088215,0.1742854,118220.0,118210.0,1.08219206]
[1752627088414,0.1693654,118220.0,118210.0,1.08219206]
[1752627090426,0.1742854,118220.0,118210.0,1.08219206]
[1752627090923,0.1742854,118220.0,118210.0,0.7500375]
[1752627091429,0.1742854,118220.0,118210.0,1.08219206]
[1752627092623,0.1691298,118240.0,118230.0,0.1691389]
[1752627092818,0.26280496,118250.0,118240.0,0.1691246]
[1752627093017,0.26523496,118250.0,118240.0,1.1529646]
[1752627093625,0.17824496,118250.0,118240.0,1.1529646]
[1752627093821,0.00420386,118250.0,118240.0,1.1529646]
[1752627094228,0.00407663,118250.0,118240.0,1.4936425]
[1752627095128,0.00407663,118250.0,118240.0,1.73192032]
[1752627095328,0.2585568,118270.0,118260.0,0.169096]
[1752627095524,0.2609868,118270.0,118260.0,0.529896]
[1752627097025,0.2609868,118270.0,118260.0,0.3608]
[1752627097225,0.59314136,118270.0,118260.0,0.9836]
[1752627097424,0.59314136,118270.0,118260.0,1.152696]
[1752627097625,0.2609868,118270.0,118260.0,1.152696]
[1752627098328,0.2609868,118270.0,118260.0,0.9836]
[1752627098930,0.2609868,118270.0,118260.0,0.98356]
[1752627099231,0.59314136,118270.0,118260.0,0.98356]
[1752627100232,0.2609868,118270.0,118260.0,1.20363]
[1752627100421,0.59314136,118270.0,118260.0,0.22007]
[1752627100622,1.99557336,118270.0,118260.0,0.1967579]
[1752627100827,0.00735,118240.0,118230.0,0.6585]
[1752627101031,0.50862916,118240.0,118230.0,0.3608]
[1752627101328,0.1764746,118240.0,118230.0,0.3608]
[1752627101523,0.1764746,118240.0,118230.0,0.36943165]
[1752627102024,0.1764746,118240.0,118230.0,0.5299389]
[1752627102226,0.1764746,118240.0,118230.0,0.3608]
[1752627103925,0.1764746,118240.0,118230.0,0.58087]
[1752627103926,0.50862916,118240.0,118230.0,0.58087]
[1752627108332,0.7986746,118240.0,118230.0,0.7500089]
[1752627108538,0.303035,118250.0,118240.0,0.1691246]
[1752627108740,0.303035,118250.0,118240.0,0.3608]
[1752627108937,0.63518956,118250.0,118240.0,0.3608]
[1752627109439,1.25726956,118250.0,118240.0,0.3608]
[1752627109642,1.25746956,118250.0,118240.0,0.3608]
[1752627110326,1.25746956,118250.0,118240.0,0.58087]
[1752627111540,1.25738956,118250.0,118240.0,0.58087]
[1752627111941,0.925195,118250.0,118240.0,0.58087]
[1752627114028,1.25734956,118250.0,118240.0,0.58087]
[1752627119146,0.925195,118250.0,118240.0,0.58087]
[1752627119352,1.25734956,118250.0,118240.0,0.58087]
[1752627120949,1.20863255,118250.0,118240.0,0.58087]
[1752627125149,1.20863255,118250.0,118240.0,0.22007]
[1752627126749,1.26927547,118250.0,118240.0,0.22007]
[1752627128350,1.55271302,118250.0,118240.0,0.1343052]
[1752627128551,1.91351302,118250.0,118240.0,0.1343052]
[1752627128952,2.08265703,118250.0,118240.0,0.1343052]
[1752627131864,1.79921948,118250.0,118240.0,0.1343052]
[1752627132062,1.73857656,118250.0,118240.0,0.1343052]
[1752627132663,1.73749656,118250.0,118240.0,0.1343052]
[1752627133268,1.11661656,118250.0,118240.0,0.1343052]
[1752627133566,1.73733656,118250.0,118240.0,0.1343052]
[1752627134167,1.73729656,118250.0,118240.0,0.1343052]
[1752627134669,1.56815255,118250.0,118240.0,0.1343052]
[1752627134967,1.8515901,118250.0,118240.0,0.1343052]
[1752627136268,1.91223302,118250.0,118240.0,0.1343052]
[1752627137371,1.8515901,118250.0,118240.0,0.1343052]
[1752627138660,1.92739375,118250.0,118240.0,0.1343052]
[1752627139375,1.8515901,118250.0,118240.0,0.1343052]
[1752627140071,2.02073411,118250.0,118240.0,0.1060522]
[1752627140566,2.02073411,118250.0,118240.0,0.0381457]
[1752627140767,2.02073411,118250.0,118240.0,0.0026936]
[1752627140969,2.02073411,118250.0,118240.0,1e-07]
[1752627142466,2.09653776,118250.0,118240.0,1e-07]
[1752627143572,0.1761542,118240.0,118230.0,5e-08]
[1752627143769,1.1648755,118240.0,118230.0,5e-08]
[1752627144770,1.1040293,118240.0,118230.0,5e-08]
[1752627146276,1.16485577,118240.0,118230.0,5e-08]
[1752627146473,1.1040293,118240.0,118230.0,5e-08]
[1752627146674,1.1040293,118240.0,118230.0,0.22007005]
[1752627146870,1.16485795,118240.0,118230.0,0.22007005]
[1752627147274,1.79342624,118240.0,118230.0,0.22007005]
[1752627148382,1.79342624,118240.0,118230.0,0.13656075]
[1752627150185,1.85950891,118240.0,118230.0,0.13656075]
[1752627151287,1.79868026,118240.0,118230.0,0.13656075]
[1752627153385,1.85950891,118240.0,118230.0,0.13656075]
[1752627153986,1.85950891,118240.0,118230.0,0.05011675]
[1752627154680,1.87448391,118240.0,118230.0,5e-08]
[1752627155181,1.96783226,118240.0,118230.0,5e-08]
[1752627155383,2.04363591,118240.0,118230.0,5e-08]
[1752627155684,1.96783226,118240.0,118230.0,5e-08]
[1752627156274,0.00471,118210.0,118190.0,0.0002]
[1752627156482,1.489421,118200.0,118190.0,0.00236]
[1752627156779,1.9184208,118200.0,118190.0,0.00236]
[1752627157385,1.3515457,118200.0,118190.0,0.00236]
[1752627157587,1.90999519,118200.0,118190.0,0.00236]
[1752627157987,0.1762257,118190.0,118180.0,0.36316]
[1752627158187,0.45986325,118190.0,118180.0,0.36316]
[1752627158376,0.45986325,118190.0,118180.0,0.36813]
[1752627158883,0.7886757,118190.0,118180.0,0.65156755]
[1752627159476,0.7886757,118190.0,118180.0,0.87163755]
[1752627160079,0.1693957,118190.0,118180.0,0.87163755]
[1752627160280,0.7886757,118190.0,118180.0,0.87163755]
[1752627162392,0.7886757,118190.0,118180.0,0.5882]
[1752627162793,0.7885957,118190.0,118180.0,0.87163755]
[1752627163492,0.7885557,118190.0,118180.0,1.04084755]
[1752627164393,0.7884757,118190.0,118180.0,1.04084755]
[1752627165689,0.7884757,118190.0,118180.0,1.06421017]
[1752627166287,0.1693957,118190.0,118180.0,1.06421017]
[1752627166899,0.1693957,118190.0,118180.0,0.89500017]
[1752627167097,0.1693957,118190.0,118180.0,0.61156262]
[1752627167393,0.1693957,118190.0,118180.0,0.89500017]
[1752627169491,0.1693957,118190.0,118180.0,0.61156262]
[1752627169688,0.1693957,118190.0,118180.0,0.87163755]
[1752627170994,0.1693957,118190.0,118180.0,1.04084755]
[1752627171194,0.1693957,118190.0,118180.0,0.75741]
[1752627171489,0.1693957,118190.0,118180.0,0.87163755]
[1752627171996,0.1693957,118190.0,118180.0,1.06419332]
[1752627172897,0.1693957,118190.0,118180.0,0.89498342]
[1752627174996,0.1693957,118190.0,118180.0,0.61154587]
[1752627176596,0.45283325,118190.0,118180.0,0.61154587]
[1752627176996,0.45519325,118190.0,118180.0,0.61154587]
[1752627180902,0.46008325,118190.0,118180.0,0.61154587]
[1752627181295,0.46008325,118190.0,118180.0,0.5882]
[1752627185103,0.1766457,118190.0,118180.0,0.5882]
[1752627185402,0.45519325,118190.0,118180.0,0.5882]
[1752627185607,0.1717557,118190.0,118180.0,0.5882]
[1752627185805,0.1693957,118190.0,118180.0,0.87163755]
[1752627186106,0.1693957,118190.0,118180.0,0.89516168]
[1752627186302,0.1693952,118190.0,118180.0,1.06437871]
[1752627186514,0.01727579,118200.0,118190.0,0.1760352]
[1752627186701,0.18645659,118200.0,118190.0,0.84380441]
[1752627187403,0.18645659,118200.0,118190.0,0.56036686]
[1752627187604,0.18645659,118200.0,118190.0,0.84380441]
[1752627187800,0.18645659,118200.0,118190.0,0.67460921]
[1752627188009,0.18645659,118200.0,118190.0,0.67560921]
[1752627188211,0.18645659,118200.0,118190.0,0.84480441]
[1752627188609,0.18645659,118200.0,118190.0,0.67560921]
[1752627188806,0.18645659,118200.0,118190.0,0.84480441]
[1752627189305,0.18645659,118200.0,118190.0,0.84480421]
[1752627190309,0.18645659,118200.0,118190.0,1.06487421]
[1752627191610,0.18645659,118200.0,118190.0,1.36257421]
[1752627193711,0.18645659,118200.0,118190.0,1.33904255]
[1752627194305,0.47215414,118200.0,118190.0,0.88641]
[1752627194506,1.73837169,118200.0,118190.0,0.51877]
[1752627194908,0.81069659,118200.0,118190.0,0.51877]
[1752627195115,0.47681414,118200.0,118190.0,0.51877]
[1752627195309,1.73833169,118200.0,118190.0,0.51877]
[1752627195517,1.96833245,118200.0,118190.0,0.4438188]
[1752627196110,1.96933245,118200.0,118190.0,0.4438188]
[1752627197516,1.96933245,118200.0,118190.0,0.1461188]
[1752627197817,1.80012445,118200.0,118190.0,0.1461188]
[1752627198616,1.63094365,118200.0,118190.0,0.1461188]
[1752627198806,1.57015089,118200.0,118190.0,0.1461188]
[1752627200317,1.64614184,118200.0,118190.0,0.1461188]
[1752627202316,1.57015089,118200.0,118190.0,0.1461188]
[1752627203716,1.6309486,118200.0,118190.0,0.1461188]
[1752627203922,1.6311486,118200.0,118190.0,0.1461188]
[1752627204313,1.2703486,118200.0,118190.0,0.1461188]
[1752627204517,1.6311486,118200.0,118190.0,0.1461188]
[1752627210425,1.57035089,118200.0,118190.0,0.1461188]
[1752627214335,1.6311486,118200.0,118190.0,0.1461188]
[1752627216135,1.57035089,118200.0,118190.0,0.1461188]
[1752627221841,1.20955089,118200.0,118190.0,0.1461188]
[1752627222237,0.64267579,118200.0,118190.0,0.1461188]
[1752627222437,1.57035089,118200.0,118190.0,0.1461188]
[1752627224832,1.6311486,118200.0,118190.0,0.1461188]
[1752627226439,1.57035089,118200.0,118190.0,0.1461188]
[1752627226634,1.57035089,118200.0,118170.0,0.36546]
[1752627226829,0.36370712,118180.0,118160.0,0.38463448]
[1752627227037,0.90593755,118170.0,118160.0,0.38712448]
[1752627227230,0.97541941,118170.0,118160.0,0.38712448]
[1752627228344,0.97541941,118170.0,118160.0,0.38912448]
[1752627229540,0.91449447,118170.0,118160.0,0.38912448]
[1752627230039,0.91449447,118170.0,118160.0,0.60919448]
[1752627231138,0.91449447,118170.0,118160.0,0.24839448]
[1752627231139,1.33621941,118170.0,118160.0,0.24839448]
[1752627231340,1.33621941,118170.0,118160.0,0.24124448]
[1752627231942,1.33621941,118170.0,118160.0,0.24590448]
[1752627232139,0.97541941,118170.0,118160.0,0.24590448]
[1752627232542,1.33621941,118170.0,118160.0,0.24590448]
[1752627232842,1.27529447,118170.0,118160.0,0.24590448]
[1752627234543,0.91449447,118170.0,118160.0,0.24839448]
[1752627236441,0.90613755,118170.0,118160.0,0.24839448]
[1752627239846,0.0002,118170.0,118160.0,0.89263203]
[1752627240045,0.0002,118170.0,118160.0,1.31188803]
[1752627240646,0.01715198,118180.0,118170.0,0.1717128]
[1752627240848,0.01715198,118180.0,118170.0,0.82061035]
[1752627241042,0.00012735,118180.0,118170.0,1.53755035]
[1752627241243,0.07820073,118200.0,118190.0,0.00249]
[1752627241551,0.63159579,118200.0,118190.0,1.01218755]
[1752627241742,0.63159579,118200.0,118190.0,1.18138165]
[1752627241938,0.01727579,118200.0,118190.0,1.47908165]
[1752627242548,0.01727579,118200.0,118190.0,2.09336165]
[1752627242749,0.01727579,118200.0,118190.0,2.26256965]
[1752627244153,0.01927579,118200.0,118190.0,2.26256965]
[1752627244542,0.06092494,118210.0,118190.0,2.26256965]
[1752627244850,0.22991867,118210.0,118200.0,0.86284905]
[1752627245046,0.22991867,118210.0,118200.0,0.5371183]
[1752627245347,0.22991867,118210.0,118200.0,0.87145755]
[1752627245545,0.22991867,118210.0,118200.0,1.04063775]
[1752627246655,0.1691659,118210.0,118200.0,1.04063775]
[1752627247052,0.1691659,118210.0,118200.0,0.87990959]
[1752627247249,0.1691659,118210.0,118200.0,0.88090959]
[1752627247443,0.1691659,118210.0,118200.0,0.58902]
[1752627247749,0.45492345,118210.0,118200.0,0.58902]
[1752627248056,0.45492345,118210.0,118200.0,0.65805199]
[1752627250751,0.28575755,118210.0,118200.0,0.65805199]
[1752627252154,0.29065755,118210.0,118200.0,0.65805199]
[1752627252659,0.90409755,118210.0,118200.0,0.58902]
[1752627252855,0.90409755,118210.0,118200.0,0.22822]
[1752627253054,0.90409755,118210.0,118200.0,0.22573]
[1752627253359,1.26489755,118210.0,118200.0,0.22107]
[1752627254245,1.26489755,118210.0,118200.0,0.22007]
[1752627254450,1.26489755,118210.0,118200.0,0.22107]
[1752627254853,1.26489755,118210.0,118200.0,0.22007]
[1752627255051,1.26589755,118210.0,118200.0,0.22007]
[1752627255256,1.7185351,118210.0,118200.0,0.21457265]
[1752627255752,1.77928787,118210.0,118200.0,0.21457265]
[1752627256054,1.7185351,118210.0,118200.0,0.21457265]
[1752627256250,1.77928787,118210.0,118200.0,0.21457265]
[1752627256452,1.32665032,118210.0,118200.0,0.21955265]
[1752627256651,1.26589755,118210.0,118200.0,0.21955265]
[1752627256858,1.26589755,118210.0,118200.0,0.22184265]
[1752627257052,1.26689755,118210.0,118200.0,0.22184265]
[1752627257252,1.26709755,118210.0,118200.0,0.22184265]
[1752627257448,0.90629755,118210.0,118200.0,0.22184265]
[1752627257860,0.96705032,118210.0,118200.0,0.22184265]
[1752627258056,0.34871032,118210.0,118200.0,0.22184265]
[1752627258254,0.96183032,118210.0,118200.0,0.58264265]
[1752627258453,0.90107755,118210.0,118200.0,0.58264265]
[1752627258662,1.07024285,118210.0,118200.0,0.58264265]
[1752627259361,1.07024285,118210.0,118200.0,0.22184265]
[1752627259657,1.77523317,118210.0,118200.0,0.05130765]
[1752627259862,0.171524,118190.0,118180.0,0.66079]
[1752627260162,1.06812155,118190.0,118180.0,0.66079]
[1752627261153,1.07272155,118190.0,118180.0,0.29999]
[1752627261762,1.07272155,118190.0,118180.0,0.30199]
[1752627262063,1.07272155,118190.0,118180.0,0.30697]
[1752627263064,1.07272155,118190.0,118180.0,0.22934]
[1752627264155,0.789284,118190.0,118180.0,0.59014]
[1752627264361,1.06812155,118190.0,118180.0,0.59014]
[1752627265164,1.43352155,118190.0,118180.0,0.1861882]
[1752627265667,0.789284,118190.0,118180.0,0.1861882]
[1752627265965,1.07272155,118190.0,118180.0,0.1884782]
[1752627267469,1.07372155,118190.0,118180.0,0.1884782]
[1752627269172,1.13447432,118190.0,118180.0,0.1934582]
[1752627270970,1.13447432,118190.0,118180.0,0.1884782]
[1752627271171,1.14308257,118190.0,118180.0,0.1884782]
[1752627271368,1.0823298,118190.0,118180.0,0.1884782]
[1752627271963,1.4431298,118190.0,118180.0,0.1884782]